fUSD/lending_fUSD_20240725
["ID","MTS","AMOUNT","RATE_DAILY","PERIOD"]
[333128503,1721879468149,-526.67053323,0.00010999,2]
[333128504,1721879468158,-1046.21006939,0.00010999,2]
[333128505,1721879468169,-500.0,0.00010999,2]
[333128506,1721879468179,-500.0,0.00010999,2]
[333128507,1721879468189,-500.0,0.00010999,2]
[333128508,1721879468199,-500.0,0.00010999,2]
[333128509,1721879468209,-500.0,0.00010999,2]
[333128510,1721879468219,-500.0,0.00010999,2]
[333128511,1721879468229,-500.0,0.00010999,2]
[333128512,1721879468238,-500.0,0.00010999,2]
[333128513,1721879468248,-500.0,0.00010999,2]
[333128514,1721879468258,-500.0,0.00010999,2]
[333128515,1721879468268,-727.18,0.00010999,2]
[333128516,1721879468278,-500.0,0.00010999,2]
[333128517,1721879468288,-727.18,0.00010999,2]
[333128518,1721879468297,-500.0,0.00010999,2]
[333128519,1721879468307,-727.18,0.00010999,2]
[333128520,1721879468317,-500.0,0.00010999,2]
[333128521,1721879468327,-727.18,0.00010999,2]
[333128522,1721879468336,-500.0,0.00010999,2]
[333128523,1721879468346,-500.0,0.00010999,2]
[333128524,1721879468356,-727.18,0.00010999,2]
[333128525,1721879468365,-500.0,0.00010999,2]
[333128526,1721879468375,-500.0,0.00010999,2]
[333128527,1721879468385,-727.18,0.00010999,2]
[333128528,1721879468397,-500.0,0.00010999,2]
[333128529,1721879468407,-500.0,0.00010999,2]
[333128530,1721879468416,-727.18,0.00010999,2]
[333128531,1721879468426,-500.0,0.00010999,2]
[333128532,1721879468436,-500.0,0.00010999,2]
[333128533,1721879468446,-727.18,0.00010999,2]
[333128534,1721879468456,-500.0,0.00010999,2]
[333128535,1721879468466,-727.18,0.00010999,2]
[333128536,1721879468477,-500.0,0.00010999,2]
[333128537,1721879468487,-500.0,0.00010999,2]
[333128538,1721879468497,-727.18,0.00010999,2]
[333128539,1721879468654,-500.0,0.00010999,2]
[333128540,1721879468664,-500.0,0.00010999,2]
[333128541,1721879468675,-727.18,0.00010999,2]
[333128542,1721879468685,-500.0,0.00010999,2]
[333128543,1721879468694,-727.18,0.00010999,2]
[333128544,1721879468704,-465.40554009,0.00010999,2]
[333128545,1721879468714,-727.18,0.00010999,2]
[333128546,1721879468724,-500.0,0.00010999,2]
[333128547,1721879468734,-727.18,0.00010999,2]
[333128548,1721879468743,-500.0,0.00010999,2]
[333128549,1721879468752,-727.18,0.00010999,2]
[333128550,1721879468762,-727.18,0.00010999,2]
[333128551,1721879468771,-727.18,0.00010999,2]
[333128552,1721879468781,-500.0,0.00010999,2]
[333128553,1721879468790,-727.18,0.00010999,2]
[333128554,1721879468800,-500.0,0.00010999,2]
[333128555,1721879468809,-727.18,0.00010999,2]
[333128556,1721879468819,-413.95956145,0.00010999,2]
[333128557,1721879468828,-727.33332929,0.00010999,2]
[333128558,1721879468838,-500.0,0.00010999,2]
[333128559,1721879468847,-500.0,0.00010999,2]
[333128560,1721879468857,-500.0,0.00010999,2]
[333128561,1721879468866,-500.0,0.00010999,2]
[333128562,1721879468876,-500.0,0.00010999,2]
[333128563,1721879468886,-500.0,0.00010999,2]
[333128564,1721879468896,-500.0,0.00010999,2]
[333128565,1721879468905,-500.0,0.00010999,2]
[333128566,1721879468915,-521.22860927,0.00010999,2]
[333128567,1721879468926,-500.0,0.00010999,2]
[333128568,1721879468935,-648.07,0.00010999,2]
[333128569,1721879468945,-648.07,0.00010999,2]
[333128570,1721879468955,-500.0,0.00010999,2]
[333128571,1721879468964,-648.07,0.00010999,2]
[333128572,1721879468974,-500.0,0.00010999,2]
[333128573,1721879468984,-648.07,0.00010999,2]
[333128574,1721879468993,-500.0,0.00010999,2]
[333128575,1721879469003,-648.07,0.00010999,2]
[333128576,1721879469013,-500.0,0.00010999,2]
[333128577,1721879469023,-648.07,0.00010999,2]
[333128578,1721879469033,-648.07,0.00010999,2]
[333128579,1721879469042,-648.07,0.00010999,2]
[333128580,1721879469052,-500.0,0.00010999,2]
[333128581,1721879469061,-493.94262976,0.00010999,2]
[333128582,1721879469070,-648.07,0.00010999,2]
[333128583,1721879469080,-648.07,0.00010999,2]
[333128584,1721879469089,-648.07,0.00010999,2]
[333128585,1721879469098,-648.07,0.00010999,2]
[333128586,1721879469108,-648.07,0.00010999,2]
[333128587,1721879469118,-648.07,0.00010999,2]
[333128588,1721879469127,-648.07,0.00010999,2]
[333128589,1721879469136,-648.07,0.00010999,2]
[333128590,1721879469146,-648.07,0.00010999,2]
[333128591,1721879469156,-648.07,0.00010999,2]
[333128592,1721879469165,-500.0,0.00010999,2]
[333128593,1721879469176,-648.07,0.00010999,2]
[333128594,1721879469185,-648.27749543,0.00010999,2]
[333128595,1721879469195,-1008.22,0.00010999,2]
[333128596,1721879469204,-500.0,0.00010999,2]
[333128597,1721879469214,-1008.22,0.00010999,2]
[333128598,1721879469224,-1008.22,0.00010999,2]
[333128599,1721879469233,-500.0,0.00010999,2]
[333128600,1721879469242,-1008.22,0.00010999,2]
[333128601,1721879469252,-500.0,0.00010999,2]
[333128602,1721879469261,-1008.22,0.00010999,2]
[333128603,1721879469271,-500.0,0.00010999,2]
[333128604,1721879469280,-1008.22,0.00010999,2]
[333128605,1721879469290,-500.0,0.00010999,2]
[333128606,1721879469299,-1008.22,0.00010999,2]
[333128607,1721879469308,-1008.22,0.00010999,2]
[333128608,1721879469318,-500.0,0.00010999,2]
[333128609,1721879469328,-1008.22,0.00010999,2]
[333128610,1721879469337,-500.0,0.00010999,2]
[333128611,1721879469347,-1008.22,0.00010999,2]
[333128612,1721879469356,-500.0,0.00010999,2]
[333128613,1721879469365,-1008.22,0.00010999,2]
[333128614,1721879469375,-500.0,0.00010999,2]
[333128615,1721879469384,-1008.22,0.00010999,2]
[333128616,1721879469396,-1008.22,0.00010999,2]
[333128617,1721879469405,-500.0,0.00010999,2]
[333128618,1721879469415,-1008.22,0.00010999,2]
[333128619,1721879469424,-500.0,0.00010999,2]
[333128620,1721879469436,-1008.22,0.00010999,2]
[333128621,1721879469445,-500.0,0.00010999,2]
[333128622,1721879469454,-1008.22,0.00010999,2]
[333128623,1721879469463,-500.0,0.00010999,2]
[333128624,1721879469474,-1008.22,0.00010999,2]
[333128625,1721879469484,-500.0,0.00010999,2]
[333128626,1721879469493,-1008.22,0.00010999,2]
[333128627,1721879469502,-317.84749046,0.00010999,2]
[333128628,1721879469512,-1008.22,0.00010999,2]
[333128629,1721879469521,-1008.40080217,0.00010999,2]
[333128630,1721879469530,-500.0,0.00010999,2]
[333128631,1721879469540,-500.0,0.00010999,2]
[333128632,1721879469549,-500.0,0.00010999,2]
[333128633,1721879469558,-500.0,0.00010999,2]
[333128634,1721879469567,-500.0,0.00010999,2]
[333128635,1721879469577,-547.91648245,0.00010999,2]
[333128636,1721879469586,-500.0,0.00010999,2]
[333128637,1721879469595,-510.45,0.00010999,2]
[333128638,1721879469604,-332.21034043,0.00010999,2]
[333128639,1721879469614,-510.45,0.00010999,2]
[333128640,1721879469624,-510.45,0.00010999,2]
[333128641,1721879469633,-510.45,0.00010999,2]
[333128642,1721879469643,-510.45,0.00010999,2]
[333128643,1721879469652,-510.45,0.00010999,2]
[333128644,1721879469661,-510.45,0.00010999,2]
[333128645,1721879469670,-510.45,0.00010999,2]
[333128646,1721879469680,-510.45,0.00010999,2]
[333128647,1721879469689,-510.45,0.00010999,2]
[333128648,1721879469698,-510.45,0.00010999,2]
[333128649,1721879469707,-510.45,0.00010999,2]
[333128650,1721879469719,-510.45,0.00010999,2]
[333128651,1721879469729,-510.45,0.00010999,2]
[333128652,1721879469738,-510.45,0.00010999,2]
[333128653,1721879469747,-510.45,0.00010999,2]
[333128654,1721879469756,-510.45,0.00010999,2]
[333128655,1721879469765,-1279.08,0.00010999,2]
[333128656,1721879469775,-510.45,0.00010999,2]
[333128657,1721879469784,-1279.08,0.00010999,2]
[333128658,1721879469793,-510.45,0.00010999,2]
[333128659,1721879469802,-1279.08,0.00010999,2]
[333128660,1721879469811,-510.62914881,0.00010999,2]
[333128661,1721879469821,-1279.08,0.00010999,2]
[333128662,1721879469830,-1279.08,0.00010999,2]
[333128663,1721879469839,-1279.08,0.00010999,2]
[333128664,1721879469848,-1279.08,0.00010999,2]
[333128665,1721879469858,-1279.08,0.00010999,2]
[333128666,1721879469867,-500.0,0.00010999,2]
[333128667,1721879469876,-1279.08,0.00010999,2]
[333128668,1721879469886,-500.0,0.00010999,2]
[333128669,1721879469895,-1279.08,0.00010999,2]
[333128670,1721879469904,-500.0,0.00010999,2]
[333128671,1721879469913,-1279.08,0.00010999,2]
[333128672,1721879469923,-500.0,0.00010999,2]
[333128673,1721879469933,-500.0,0.00010999,2]
[333128674,1721879469942,-1279.08,0.00010999,2]
[333128675,1721879469952,-500.0,0.00010999,2]
[333128676,1721879469961,-1279.08,0.00010999,2]
[333128677,1721879469970,-500.0,0.00010999,2]
[333128678,1721879469979,-1279.08,0.00010999,2]
[333128679,1721879469989,-500.0,0.00010999,2]
[333128680,1721879469998,-920.98,0.00010999,2]
[333128681,1721879470007,-500.0,0.00010999,2]
[333128682,1721879470016,-1279.08,0.00010999,2]
[333128683,1721879470025,-920.98,0.00010999,2]
[333128684,1721879470034,-500.0,0.00010999,2]
[333128685,1721879470044,-920.98,0.00010999,2]
[333128686,1721879470053,-1279.08,0.00010999,2]
[333128687,1721879470062,-500.0,0.00010999,2]
[333128688,1721879470071,-920.98,0.00010999,2]
[333128689,1721879470080,-1279.08,0.00010999,2]
[333128690,1721879470089,-500.0,0.00010999,2]
[333128691,1721879470098,-920.98,0.00010999,2]
[333128692,1721879470107,-1279.08,0.00010999,2]
[333128693,1721879470116,-570.91158633,0.00010999,2]
[333128694,1721879470126,-920.98,0.00010999,2]
[333128695,1721879470135,-1279.08,0.00010999,2]
[333128696,1721879470145,-920.98,0.00010999,2]
[333128697,1721879470154,-1279.12974582,0.00010999,2]
[333128698,1721879470164,-920.98,0.00010999,2]
[333128699,1721879470174,-920.98,0.00010999,2]
[333128700,1721879470184,-920.98,0.00010999,2]
[333128701,1721879470193,-920.98,0.00010999,2]
[333128702,1721879470203,-920.98,0.00010999,2]
[333128703,1721879470212,-920.98,0.00010999,2]
[333128704,1721879470221,-920.98,0.00010999,2]
[333128705,1721879470230,-920.98,0.00010999,2]
[333128706,1721879470239,-920.98,0.00010999,2]
[333128707,1721879470248,-920.98,0.00010999,2]
[333128708,1721879470257,-920.98,0.00010999,2]
[333128709,1721879470267,-920.98,0.00010999,2]
[333128710,1721879470276,-921.04853692,0.00010999,2]
[333128711,1721879470285,-517.17,0.00010999,2]
[333128712,1721879470295,-517.17,0.00010999,2]
[333128713,1721879470304,-517.17,0.00010999,2]
[333128714,1721879470313,-517.17,0.00010999,2]
[333128715,1721879470322,-517.17,0.00010999,2]
[333128716,1721879470331,-517.17,0.00010999,2]
[333128717,1721879470340,-517.17,0.00010999,2]
[333128718,1721879470349,-517.17,0.00010999,2]
[333128719,1721879470359,-517.17,0.00010999,2]
[333128720,1721879470368,-500.0,0.00010999,2]
[333128721,1721879470377,-517.17,0.00010999,2]
[333128722,1721879470387,-512.88561773,0.00010999,2]
[333128723,1721879470399,-517.17,0.00010999,2]
[333128724,1721879470409,-500.0,0.00010999,2]
[333128725,1721879470418,-517.17,0.00010999,2]
[333128726,1721879470427,-500.0,0.00010999,2]
[333128727,1721879470438,-517.17,0.00010999,2]
[333128728,1721879470448,-500.0,0.00010999,2]
[333128729,1721879470457,-517.17,0.00010999,2]
[333128730,1721879470467,-500.0,0.00010999,2]
[333128731,1721879470479,-517.17,0.00010999,2]
[333128732,1721879470489,-517.17,0.00010999,2]
[333128733,1721879470498,-517.17,0.00010999,2]
[333128734,1721879470507,-500.0,0.00010999,2]
[333128735,1721879470516,-500.0,0.00010999,2]
[333128736,1721879470524,-517.17,0.00010999,2]
[333128737,1721879470534,-517.17,0.00010999,2]
[333128738,1721879470543,-517.28520265,0.00010999,2]
[333128739,1721879470552,-500.0,0.00010999,2]
[333128740,1721879470560,-500.0,0.00010999,2]
[333128741,1721879470570,-500.0,0.00010999,2]
[333128742,1721879470579,-500.0,0.00010999,2]
[333128743,1721879470588,-500.0,0.00010999,2]
[333128744,1721879470597,-500.0,0.00010999,2]
[333128745,1721879470606,-164.26,0.00010999,2]
[333128746,1721879470615,-500.0,0.00010999,2]
[333128747,1721879470624,-500.0,0.00010999,2]
[333128748,1721879470632,-500.0,0.00010999,2]
[333128749,1721879470642,-500.0,0.00010999,2]
[333128750,1721879470651,-500.0,0.00010999,2]
[333128751,1721879470659,-254.06192263,0.00010999,2]
[333128752,1721879470668,-1173.88,0.00010999,2]
[333128753,1721879470677,-244.55622565,0.00010999,2]
[333128754,1721879470687,-1173.88,0.00010999,2]
[333128755,1721879470696,-1173.88,0.00010999,2]
[333128756,1721879470705,-1173.88,0.00010999,2]
[333128757,1721879470714,-1173.88,0.00010999,2]
[333128758,1721879470724,-1173.88,0.00010999,2]
[333128759,1721879470733,-1173.88,0.00010999,2]
[333128760,1721879470742,-2022.2,0.00010999,2]
[333128761,1721879470751,-2022.2,0.00010999,2]
[333128762,1721879470761,-2022.2,0.00010999,2]
[333128763,1721879470770,-1173.88,0.00010999,2]
[333128764,1721879470779,-1173.88,0.00010999,2]
[333128765,1721879470788,-2022.2,0.00010999,2]
[333128766,1721879470797,-1173.88,0.00010999,2]
[333128767,1721879470807,-2022.2,0.00010999,2]
[333128768,1721879470816,-1173.88,0.00010999,2]
[333128769,1721879470825,-1173.88,0.00010999,2]
[333128770,1721879470834,-1173.88,0.00010999,2]
[333128771,1721879470843,-2022.2,0.00010999,2]
[333128772,1721879470853,-1173.88,0.00010999,2]
[333128773,1721879470862,-2022.2,0.00010999,2]
[333128774,1721879470871,-2022.2,0.00010999,2]
[333128775,1721879470881,-1173.88,0.00010999,2]
[333128776,1721879470891,-2022.2,0.00010999,2]
[333128777,1721879470900,-1173.88,0.00010999,2]
[333128778,1721879470910,-2022.2,0.00010999,2]
[333128779,1721879470919,-1173.88,0.00010999,2]
[333128780,1721879470928,-2022.2,0.00010999,2]
[333128781,1721879470938,-1173.88,0.00010999,2]
[333128782,1721879470948,-2022.2,0.00010999,2]
[333128783,1721879470957,-1173.88,0.00010999,2]
[333128784,1721879470967,-2022.33035588,0.00010999,2]
[333128785,1721879470977,-1173.92759183,0.00010999,2]
[333128786,1721879470986,-500.0,0.00010999,2]
[333128787,1721879470995,-532.42116801,0.00010999,2]
[333128788,1721879471004,-3000.0,0.00010999,2]
[333128789,1721879471013,-1083.39,0.00010999,2]
[333128790,1721879471022,-1083.39,0.00010999,2]
[333128791,1721879471032,-1083.39,0.00010999,2]
[333128792,1721879471041,-1083.39,0.00010999,2]
[333128793,1721879471184,-1083.39,0.00010999,2]
[333128794,1721879471194,-1083.39,0.00010999,2]
[333128795,1721879471203,-1083.39,0.00010999,2]
[333128796,1721879471213,-1083.39,0.00010999,2]
[333128797,1721879471222,-1083.39,0.00010999,2]
[333128798,1721879471232,-1083.39,0.00010999,2]
[333128799,1721879471241,-1083.39,0.00010999,2]
[333128800,1721879471250,-1083.39,0.00010999,2]
[333128801,1721879471260,-1083.39,0.00010999,2]
[333128802,1721879471269,-1083.39,0.00010999,2]
[333128803,1721879471279,-1083.39,0.00010999,2]
[333128804,1721879471288,-1083.39,0.00010999,2]
[333128805,1721879471297,-1083.39,0.00010999,2]
[333128806,1721879471307,-1083.39,0.00010999,2]
[333128807,1721879471316,-1083.39,0.00010999,2]
[333128808,1721879471325,-1083.56923014,0.00010999,2]
[333128809,1721879471334,-846.26,0.00010999,2]
[333128810,1721879471344,-846.26,0.00010999,2]
[333128811,1721879471354,-846.26,0.00010999,2]
[333128812,1721879471363,-846.26,0.00010999,2]
[333128813,1721879471372,-846.26,0.00010999,2]
[333128814,1721879471381,-846.26,0.00010999,2]
[333128815,1721879471392,-846.26,0.00010999,2]
[333128816,1721879471403,-846.26,0.00010999,2]
[333128817,1721879471413,-846.26,0.00010999,2]
[333128818,1721879471423,-846.26,0.00010999,2]
[333128819,1721879471435,-846.26,0.00010999,2]
[333128820,1721879471444,-846.26,0.00010999,2]
[333128821,1721879471454,-846.26,0.00010999,2]
[333128822,1721879471464,-846.26,0.00010999,2]
[333128823,1721879471475,-846.26,0.00010999,2]
[333128824,1721879471485,-846.26,0.00010999,2]
[333128825,1721879471495,-846.26,0.00010999,2]
[333128826,1721879471505,-846.26,0.00010999,2]
[333128827,1721879471514,-846.26,0.00010999,2]
[333128828,1721879471524,-846.30833917,0.00010999,2]
[333128829,1721879471534,-574.41511086,0.00010999,2]
[333128830,1721879471543,-500.0,0.00010999,2]
[333128831,1721879471553,-500.0,0.00010999,2]
[333128832,1721879471564,-635.55402334,0.00010999,2]
[333128833,1721879471573,-210.86,0.00011,2]
[333128834,1721879471583,-4997.0,0.00011,2]
[333128835,1721879471592,-1800.0,0.00011,2]
[333128836,1721879471602,-46510.98496003,0.00011,2]
[333128837,1721879471641,-19285.75170967,0.00011,2]
[333128838,1721879471653,-2164.06068103,0.00011,2]
[333128839,1721879471665,-6099.87879838,0.00011,2]
[333128840,1721879471676,-489.97476343,0.00011,2]
[333128841,1721879471762,-3500.0,0.00011,2]
[333128842,1721879471773,-9035.707166,0.00011,2]
[333128843,1721879472870,-621.67,0.00010958,2]
[333128844,1721879472879,-621.67,0.00010997,2]
[333128845,1721879472889,-621.67,0.00010998,2]
[333128846,1721879472898,-621.67,0.00010998,2]
[333128847,1721879472909,-3462.03108862,0.00011,2]
[333128848,1721879472923,-8259.64506002,0.00011,2]
[333128849,1721879472938,-16288.40638518,0.00011,2]
[333128850,1721879472949,-66704.94767848,0.00011,2]
[333128851,1721879472960,-644.37095723,0.00011,2]
[333128852,1721879472971,-949.65,0.00011,2]
[333128853,1721879472982,-59077.59912517,0.00011,2]
[333128854,1721879472992,-2066.50353201,0.00011,2]
[333128855,1721879473004,-37907.84772071,0.00011,2]
[333128856,1721879473017,-58613.52180749,0.00011,2]
[333128857,1721879473028,-1667.75877493,0.00011,2]
[333128858,1721879473039,-5616.97569909,0.00011,2]
[333128859,1721879473050,-264.208,0.00011,2]
[333128860,1721879473061,-3172.49999995,0.00011,2]
[333128861,1721879473072,-3204.7,0.00011,2]
[333128862,1721879473083,-2128.25710598,0.00011,2]
[333128863,1721879473094,-2561.44,0.00011,2]
[333128864,1721879473105,-432.05266282,0.00011,2]
[333128865,1721879473116,-291.09122005,0.00011,2]
[333128866,1721879473127,-565.134902,0.00011,2]
[333128867,1721879473137,-6330.0,0.00011,2]
[333128875,1721879617421,159.56,8.219e-05,2]
[333128876,1721879684592,49750.0,8.219e-05,2]
[333128877,1721879692055,155.55923325,8.219e-05,2]
[333128878,1721879787732,2541.3,9.05e-05,2]
[333128879,1721879988050,155.0,9.05e-05,2]
[333128880,1721880062078,155.34566846,9.05e-05,2]
[333128881,1721880408449,160.28,7.354e-05,2]
[333128882,1721880448329,163.07,8.219e-05,2]
[333128962,1721880631793,-778.63384695,9.071e-05,2]
[333128963,1721880631848,-221.36459806,9.071e-05,2]
[333128964,1721880631858,-765.27,9.171e-05,2]
[333128965,1721880631867,-250.0,9.171e-05,2]
[333128966,1721880631876,-208.0,9.172e-05,2]
[333128967,1721880631886,-992.51453193,9.173e-05,2]
[333128968,1721880631897,-6848.03859307,9.173e-05,2]
[333128969,1721880631908,-3401.1581367,9.173e-05,2]
[333128970,1721880631920,-6659.40709401,9.173e-05,2]
[333128971,1721880631936,-5808.604712,9.173e-05,2]
[333128972,1721880631960,-170.27693229,9.173e-05,2]
[333128973,1721880631969,-961.92,9.182e-05,2]
[333128974,1721880631979,-640.0,9.199e-05,2]
[333128975,1721880631988,-169.68,9.205e-05,2]
[333128976,1721880631997,-360.0,9.208e-05,2]
[333128977,1721880632006,-959.1,9.216e-05,2]
[333128978,1721880632016,-578.67,9.217e-05,2]
[333128979,1721880632026,-263.26,9.667e-05,2]
[333128980,1721880632036,-499.99,9.67e-05,2]
[333128981,1721880632045,-995.42,9.67e-05,2]
[333128982,1721880632054,-150.99,9.67e-05,2]
[333128983,1721880632063,-387.75,9.67e-05,2]
[333128984,1721880632072,-165.34,9.67e-05,2]
[333128985,1721880632082,-150.0,9.67e-05,2]
[333128986,1721880632091,-165.34,9.67e-05,2]
[333128987,1721880632100,-165.34,9.67e-05,2]
[333128988,1721880632109,-3939.8389,9.809e-05,2]
[333128989,1721880632118,-709.54,9.81e-05,2]
[333128990,1721880632127,-150.0,9.878e-05,2]
[333128991,1721880632136,-165.34,9.878e-05,2]
[333128992,1721880632145,-355.87,9.878e-05,2]
[333128993,1721880632154,-696.33416771,9.909e-05,2]
[333128994,1721880632166,-579.21583229,9.909e-05,2]
[333128995,1721880632175,-97.79416771,9.944e-05,2]
[333129005,1721880637716,-199.72583229,9.944e-05,2]
[333129006,1721880637728,-297.52,9.947e-05,2]
[333129007,1721880637737,-297.52,9.949e-05,2]
[333129008,1721880637747,-297.52,9.952e-05,2]
[333129009,1721880637760,-297.52,9.954e-05,2]
[333129010,1721880637778,-297.52,9.957e-05,2]
[333129011,1721880637790,-297.52,9.96e-05,2]
[333129012,1721880637800,-176.92666474,9.962e-05,2]
[333129013,1721880637810,-297.52,9.962e-05,2]
[333129014,1721880637820,-297.52,9.965e-05,2]
[333129015,1721880637830,-297.52,9.968e-05,2]
[333129016,1721880637840,-150.0,9.968e-05,2]
[333129017,1721880637850,-297.52,9.97e-05,2]
[333129018,1721880637860,-297.52,9.973e-05,2]
[333129019,1721880637870,-297.52,9.975e-05,2]
[333129020,1721880637885,-297.52,9.978e-05,2]
[333129021,1721880637894,-297.52,9.981e-05,2]
[333129022,1721880637904,-297.52,9.983e-05,2]
[333129023,1721880637913,-297.52,9.986e-05,2]
[333129024,1721880637923,-297.52,9.989e-05,2]
[333129025,1721880637932,-297.52,9.991e-05,2]
[333129026,1721880637942,-297.52,9.994e-05,2]
[333129027,1721880637953,-1003.15070357,0.0001,2]
[333129028,1721880637963,-150.0,0.00010178,2]
[333129029,1721880637972,-165.34,0.00010178,2]
[333129030,1721880637981,-355.87,0.00010178,2]
[333129031,1721880637991,-5100.80443964,0.00010182,2]
[333129032,1721880638000,-640.0,0.00010349,2]
[333129033,1721880638010,-360.0,0.00010359,2]
[333129034,1721880638019,-253.16,0.00010378,2]
[333129035,1721880638031,-150.0,0.00010378,2]
[333129036,1721880638040,-165.34,0.00010378,2]
[333129037,1721880638049,-355.87,0.00010378,2]
[333129038,1721880638059,-1292.445814,0.000104,2]
[333129039,1721880638068,-163.07,0.00010433,2]
[333129040,1721880638078,-355.87,0.00010478,2]
[333129041,1721880638087,-150.0,0.00010478,2]
[333129042,1721880638096,-165.34,0.00010478,2]
[333129043,1721880638106,-150.0,0.00010478,2]
[333129045,1721880638115,-150.0,0.00010478,2]
[333129047,1721880638124,-150.0,0.00010478,2]
[333129049,1721880638133,-165.34,0.00010478,2]
[333129050,1721880638143,-355.87,0.00010478,2]
[333129051,1721880638152,-150.0,0.00010478,2]
[333129052,1721880638161,-165.34,0.00010478,2]
[333129053,1721880638171,-355.87,0.00010478,2]
[333129054,1721880638181,-561.35,0.00010478,2]
[333129055,1721880638190,-355.87,0.00010478,2]
[333129056,1721880638202,-1600.0,0.000105,2]
[333129057,1721880638211,-856.13,0.00010578,2]
[333129058,1721880638220,-300.0,0.0001058,2]
[333129059,1721880638230,-2400.0,0.00010684,2]
[333129060,1721880638239,-2300.0,0.00010684,2]
[333129061,1721880638250,-1017.0,0.000107,2]
[333129062,1721880638260,-473.66,0.00010702,2]
[333129063,1721880638270,-35526.17654573,0.00010802,2]
[333129064,1721880638292,-1898.25653484,0.00010802,2]
[333129065,1721880638313,-6408.27580793,0.00010802,2]
[333129066,1721880638334,-56167.2911115,0.00010802,2]
[333129067,1721880638343,-33849.7193,0.00010812,2]
[333129068,1721880638353,-301.25284308,0.00010812,2]
[333129069,1721880638363,-500.0,0.00010858,2]
[333129070,1721880638372,-1000.0,0.00010858,2]
[333129071,1721880638381,-2060.3683,0.00010858,2]
[333129072,1721880638391,-14126.7349,0.00010858,2]
[333129073,1721880638400,-163.82466001,0.00010899,2]
[333129074,1721880638409,-163.82466001,0.00010899,2]
[333129075,1721880638419,-163.82466001,0.00010899,2]
[333129076,1721880638428,-163.82466001,0.00010899,2]
[333129077,1721880638439,-163.82466001,0.00010899,2]
[333129078,1721880638452,-163.82466001,0.00010899,2]
[333129079,1721880638463,-163.82466001,0.00010899,2]
[333129080,1721880638473,-163.82466001,0.00010899,2]
[333129081,1721880638484,-163.82466001,0.00010899,2]
[333129082,1721880638494,-947.41790944,0.00010899,2]
[333129083,1721880638504,-947.41790935,0.00010899,2]
[333129084,1721880638514,-947.41790935,0.00010899,2]
[333129085,1721880638524,-947.41790935,0.00010899,2]
[333129086,1721880638534,-947.41790935,0.00010899,2]
[333129087,1721880638545,-947.41790935,0.00010899,2]
[333129088,1721880638555,-947.41790935,0.00010899,2]
[333129089,1721880638564,-947.41790935,0.00010899,2]
[333129090,1721880638575,-947.41790935,0.00010899,2]
[333129091,1721880638584,-163.82466001,0.000109,2]
[333129092,1721880638595,-947.41790935,0.000109,2]
[333129093,1721880638604,-160.67366415,0.000109,2]
[333129094,1721880638614,-160.67366415,0.000109,2]
[333129095,1721880638623,-160.67366415,0.000109,2]
[333129096,1721880638633,-500.0,0.00010912,2]
[333129097,1721880638643,-500.0,0.00010958,2]
[333129098,1721880638653,-203.68579487,0.00010958,2]
[333129099,1721880638662,-1981.88,0.00010958,2]
[333129100,1721880638672,-500.0,0.00010958,2]